Cogmind - Beta 14 @@@ ROGUE MODE // 2024.10.01 @ 18:41:08 Player: BionicBot Result: Destroyed by Y-64 Sentinel with Wave Gun Performance ------------- Evolutions (4) 2000 Regions Visited (7) 1400 Robots Destroyed (118) 590 Value Destroyed (4449) 4449 Prototype IDs (9) 180 Alien Tech Used (0) 0 Bonus (487) 487 TOTAL SCORE: 9106 Bonus ------- High Alert Combat Kills 559 Follower Combat Kills 772 Registered with UFD 300 Friendly Fire -1144 Cogmind --------- Core Integrity 0/850 Matter 295/300 Energy 99/100 System Corruption 15% Temperature Cool (9) Movement Rolling (90) Ox2 Location -6/Lower Caves Parts ------- > --- POWER (2) -------- (None) > --- PROPULSION (4) --- Overtuned Scrapsphere Overtuned Scrapsphere Overtuned Scrapsphere > --- UTILITY (6) ------ Advanced Heat Sink High-capacity Storage Unit > --- WEAPON (3) ------- Katana Falx > --- INVENTORY (20) --- Advanced Sensor Array Improved Signal Interpreter Advanced Terrain Scan Processor Seismic Detector Enhanced Scrap Shield Improved Hacking Suite Improved System Shield Heavy Plasma Cannon Heavy Rocket Launcher Long-range Missile Launcher CPS Tube (2) CPS Tube (2) Peak State ------------ > --- POWER ------------ Improved Deuterium Engine Fission Core > --- PROPULSION ------- Overtuned Scrapsphere Overtuned Scrapsphere Armored Huge Wheel > --- UTILITY ---------- Scrap Suit Improved Heat Sink High-capacity Storage Unit Enhanced Scrap Shield > --- WEAPON ----------- Heavy Plasma Cannon Hypervelocity Gauss Rifle Hypervelocity Gauss Rifle > --- INVENTORY -------- Light Treads Armored Wheel Advanced Sensor Array Seismic Detector Core Shielding Improved Utility Shielding Improved Light Armor Plating Improved Light Armor Plating Improved Hacking Suite Overtuned Pulse Rifle Overtuned Pulse Rifle Hypervelocity Gauss Rifle Hypervelocity Gauss Rifle Heavy Rocket Launcher Long-range Missile Launcher CPS Tube CPS Tube Katana Falx [Rating: 68] Favorites ----------- Power Ion Engine Engine Ion Engine Power Core Fission Core Propulsion Overtuned Scrapsphere Treads Spiked Treads Wheel Overtuned Scrapsphere Utility Large Storage Unit Device Scrap Suit Storage Large Storage Unit Protection Light Armor Plating Weapon Hypervelocity Gauss Rifle Energy Gun Overtuned Pulse Rifle Energy Cannon Heavy Plasma Cannon Ballistic Gun Hypervelocity Gauss Rifle Ballistic Cannon Battle Cannon Launcher Heavy Rocket Launcher Special Weapon CPS Tube Impact Weapon Flail Slashing Weapon Falx Build | -11 -10 -10 -9 -9 -6 -6 -6 ------- Run | Yrd Mat Sub Rec Scr Fac Low Low Slots Evolved 8 | . . . . . 8 . . Power 1 | . . . . . 1 . . Propulsion 2 | . . . . . 2 . . Utility 4 | . . . . . 4 . . Weapon 1 | . . . . . 1 . . Parts Attached 139 | 7 6 21 2 5 78 11 9 Power 11 | 1 . 3 . . 6 . 1 Engine 8 | 1 . 2 . . 5 . . Core 3 | . . 1 . . 1 . 1 Reactor . | . . . . . . . . Propulsion 20 | 2 . 5 . . 11 2 . Treads 13 | 2 . 5 . . 6 . . Leg . | . . . . . . . . Wheel 7 | . . . . . 5 2 . Hover . | . . . . . . . . Flight . | . . . . . . . . Utility 31 | 2 2 1 . 3 17 4 2 Device 11 | 1 . . . . 7 2 1 Storage 3 | 1 1 . . 1 . . . Processor . | . . . . . . . . Hackware . | . . . . . . . . Protection 17 | . 1 1 . 2 10 2 1 Artifact . | . . . . . . . . Weapon 77 | 2 4 12 2 2 44 5 6 Energy Gun 9 | . . . . . 6 2 1 Energy Cannon 3 | . . . . . 3 . . Ballistic Gun 43 | 2 3 8 2 2 23 2 1 Ballistic Cannon 2 | . . 2 . . . . . Launcher 2 | . . . . . . 1 1 Special Weapon 5 | . . . . . 4 . 1 Impact Weapon 3 | . 1 2 . . . . . Slashing Weapon 10 | . . . . . 8 . 2 Piercing Weapon . | . . . . . . . . Special Melee Weapon . | . . . . . . . . Unidentified Prototypes 1 | . . . . . . 1 . Parts Lost 39 | . . 9 . . 19 1 10 Power 7 | . . 1 . . 3 . 3 Propulsion 7 | . . 2 . . 4 . 1 Utility 8 | . . 2 . . 5 . 1 Weapon 17 | . . 4 . . 7 1 5 Highest Loss Streak 8 | . . 3 . . 5 1 8 To Critical Strikes 3 | . . 1 . . 1 . 1 Average Slot Usage (%) 88 | . 100 94 70 99 81 83 79 Engine 10 | . 14 8 14 14 10 6 5 Core 2 | . . 5 . . 1 6 3 Treads 18 | . 28 27 28 28 8 . . Wheel 7 | . . . . . 14 23 25 Device 5 | . 2 . . . 12 13 11 Storage 10 | . 14 14 14 14 6 6 6 Protection 8 | . 11 9 . 13 7 6 4 Ballistic Gun 20 | . 27 24 13 28 14 16 17 Peak Build Rating 68 | 7 10 16 13 18 60 68 66 Average Rating 31 | 5 8 12 10 15 51 63 58 On Entrance 23 | . 7 10 13 13 18 59 64 Naked Turns . | . . . . . . . . Heaviest Build 101 | 14 34 34 31 55 101 98 101 Greatest Support 103 | 40 40 40 40 40 103 44 34 Greatest Overweight (x) 10 | . . 1 . 1 10 5 2 Average Overweight (x) 1 | . . . . . 2 2 1 Largest Inventory Capacity 20 | 8 15 15 15 20 20 20 20 Average Capacity 17 | 7 13 15 15 15 20 20 20 Most Carried 20 | 2 13 15 15 18 20 20 17 Average Carried 14 | 1 9 14 15 13 18 16 13 Final Capacity 20 | 8 15 15 15 20 20 20 20 Final Carried 18 | 2 13 15 15 18 17 13 13 Class Distribution -------------------- 34% | Mutant 26% | Scavenger-Scrapper 22% | Derelict-Mutant 8% | Scavenger-Tank 4% | Tank Dominant Class ---------------- Mutant | -10/Materials Mutant | -10/Subcaves Mutant | -9/Recycling Derelict-Mutant | -9/Scraptown Scavenger-Scrapper | -6/Factory Scavenger-Scrapper | -6/Lower Caves Scavenger-Scrapper | -6/Lower Caves Resources | -11 -10 -10 -9 -9 -6 -6 -6 ----------- Run | Yrd Mat Sub Rec Scr Fac Low Low Matter Collected 4813 | 293 221 693 32 86 2445 639 404 Remotely . | . . . . . . . . Salvage Created 5855 | 101 439 476 45 . 3519 679 596 Parts 301 | 5 36 28 . . 178 24 30 Haulers Intercepted 1 | . 1 . . . . . . Recyclers Shooed 4 | . 1 . . . 3 . . Parts Field Recycled . | . . . . . . . . Retrieved Matter . | . . . . . . . . Parts Self-Destructed 71 | . . 10 . . . 37 24 Prevented . | . . . . . . . . Kills | -11 -10 -10 -9 -9 -6 -6 -6 ------- Run | Yrd Mat Sub Rec Scr Fac Low Low Combat Hostiles Destroyed 92 | . 7 12 1 . 45 12 15 Melee 5 | . . . . . 3 . 2 Guns 75 | . 7 11 1 . 40 9 7 Cannons 3 | . . 1 . . 2 . . AOE 9 | . . . . . . 3 6 Classes Destroyed 18 | 2 6 3 . . 7 . . Worker 2 | . 1 . . . 1 . . Builder 6 | . 4 . . . 2 . . Tunneler 1 | 1 . . . . . . . Hauler 1 | . 1 . . . . . . Recycler 5 | 1 1 . . . 3 . . Operator 2 | . . . . . 2 . . Watcher 3 | . 1 . . . 2 . . Swarmer 22 | . 4 . . . 7 3 8 Grunt 31 | . 3 2 . . 17 4 5 Brawler 4 | . . . . . 2 1 1 Duelist 3 | . . . . . 1 2 . Sentry 10 | . . 1 1 . 6 1 1 Hunter 5 | . . . . . 4 1 . Programmer 7 | . . . . . 7 . . Behemoth 1 | . . . . . 1 . . Artisan 1 | . . 1 . . . . . Subdweller 9 | . . 9 . . . . . Scrapoid 6 | . . . . . 6 . . Best Kill Streak 7 | 2 3 2 1 . 4 5 7 Combat Bots Only 7 | . 3 2 1 . 4 5 7 Max Kills in Single Turn 6 | 1 2 1 1 . 2 3 6 Gunslinging . | . . . . . . . . Exploded 6 | . . . . . . 3 6 Melee 1 | . . . . . 1 . 1 Uniques/NPCs Destroyed . | . . . . . . . . Combat | -11 -10 -10 -9 -9 -6 -6 -6 -------- Run | Yrd Mat Sub Rec Scr Fac Low Low Hostile Shots Fired 849 | . 29 103 6 . 480 114 117 Missed 264 | . 6 30 . . 159 36 33 Damage Taken 10120 | . 272 1638 90 . 5562 1000 1558 Core 1059 | . 34 129 30 . 426 85 355 Absorbed by Shields . | . . . . . . . . Redirected to Shielding 51 | . . . . . 51 . . Ignored by Resistances 23 | . . . . . 23 . . Regen/Repaired (Parts) 286 | . . . . . 263 23 . Core Remaining (%) 61 | 100 . . . 22 . . . Volleys Fired 383 | 7 32 69 6 . 201 43 25 Largest 3 | 2 2 2 2 . 3 3 3 Hottest 190 | 40 46 64 51 . 190 156 146 Shots Fired 919 | 14 63 137 12 . 508 117 68 Gun 847 | 14 63 109 12 . 470 113 66 Cannon 62 | . . 28 . . 32 2 . Launcher 3 | . . . . . . 2 1 Special 7 | . . . . . 6 . 1 Kinetic 782 | 14 63 137 12 . 409 84 63 Thermal 127 | . . . . . 93 31 3 Explosive 3 | . . . . . . 2 1 Electromagnetic . | . . . . . . . . Robot Hit Streak 23 | 7 11 23 10 . 17 23 9 Robot Miss Streak 9 | 1 2 4 2 . 9 4 4 Penetration Max 2 | . . . . . 2 1 1 Secondary Targets 11 | . . 1 . . 5 1 4 Max Gunslinging Chain 1 | . . 1 . . 1 1 1 Shots Hit Robots 639 | 10 37 108 9 . 346 76 53 Core Hits 274 | 3 22 28 3 . 148 36 34 Critical Kills 23 | . 1 . . . 12 5 5 Critical Parts Destroyed 36 | . . . . . 22 10 4 Critical Strikes 75 | . 1 1 . . 45 17 11 Burn 8 | . . . . . 7 1 . Destroy 62 | . 1 1 . . 34 16 10 Sever 5 | . . . . . 4 . 1 Melee Attacks 64 | . 3 8 . . 43 . 10 Impact 11 | . 3 8 . . . . . Slashing 53 | . . . . . 43 . 10 Piercing . | . . . . . . . . Sneak Attacks 5 | . . . . . 5 . . Combat Hostiles . | . . . . . . . . Follow-up Attacks . | . . . . . . . . Damage Inflicted 12224 | 100 464 1698 170 . 7553 1080 1159 Guns 8716 | 100 464 1316 170 . 5453 831 382 Cannons 1074 | . . 382 . . 622 70 . Explosions 723 | . . . . . 112 179 432 Melee 1646 | . . . . . 1301 . 345 Ramming 65 | . . . . . 65 . . Kinetic 7664 | 100 464 1698 170 . 4542 373 317 Thermal 2126 | . . . . . 1533 528 65 Explosive 611 | . . . . . . 179 432 Electromagnetic 112 | . . . . . 112 . . Impact . | . . . . . . . . Slashing 1646 | . . . . . 1301 . 345 Piercing . | . . . . . . . . Highest Corruption 15 | . 1 1 1 . 7 7 15 Average Corruption 3 | . 1 1 1 . 3 7 7 Corruption Purged . | . . . . . . . . Corruption Blocked . | . . . . . . . . Effects 124 | . 3 18 5 . 55 27 16 Message Errors 28 | . 1 6 1 . 11 5 4 Matter Fused 26 | . . 1 . . 16 7 2 Heat Flow Errors 20 | . 1 5 1 . 7 5 1 Energy Discharges 10 | . . . . . 5 3 2 Parts Rejected 4 | . . 1 . . 2 . 1 Parts Fused 2 | . . . . . 1 1 . Data Loss (minor) 14 | . . 2 2 . 7 . 3 Data Loss (major) 6 | . . 2 . . 4 . . Misfires 4 | . . . . . . 3 1 Alerts 5 | . 1 . 1 . 1 2 . Weapon Failures 5 | . . 1 . . 1 1 2 Overload Shots . | . . . . . . . . Overflow Damage 78 | . . . . . 48 22 8 Projectiles 27 | . . . . . 27 . . Explosions 30 | . . . . . . 22 8 Melee 21 | . . . . . 21 . . Knockbacks 1 | . . . . . 1 . . Impact 1 | . . . . . 1 . . Kinetic . | . . . . . . . . Secondary . | . . . . . . . . Self-Inflicted Damage 52 | . . . . . 52 . . Shots 1 | . . . . . 1 . . Rammed 4 | . . . . . 4 . . Targets Rammed 4 | . . . . . 4 . . Kicked . | . . . . . . . . Crushed . | . . . . . . . . Highest Temperature 417 | . 272 235 164 . 410 417 222 Average Temperature 104 | . 42 106 41 . 112 130 59 Received Heat Transfer 2169 | . 87 216 27 . 1221 150 468 Effects 4 | . . . . . 2 2 . Shutdowns 2 | . . . . . 1 1 . Energy Bleed 1 | . . . . . 1 . . Short Circuit 1 | . . . . . . 1 . Siege Activations . | . . . . . . . . Robots Corrupted . | . . . . . . . . Combat Hostiles . | . . . . . . . . Parts Fried . | . . . . . . . . Impact Corruptions 1 | . . . . . 1 . . Robots Melted . | . . . . . . . . Combat Hostiles . | . . . . . . . . Parts Melted 9 | . . 1 . . 4 2 2 Heat Transferred 4852 | . . . . . 3402 1300 150 Parts Sabotaged . | . . . . . . . . Parts Stolen . | . . . . . . . . Parts Stripped . | . . . . . . . . Power Chain Reactions . | . . . . . . . . Alert | -11 -10 -10 -9 -9 -6 -6 -6 ------- Run | Yrd Mat Sub Rec Scr Fac Low Low Peak Influence 1433 | 10 158 . 34 . 1433 . . Initial 6 | . 6 . . . . . . Average 351 | 2 40 . 5 . 569 . . Maximum Alert Level 4 | . . . . . 4 . . Low Security (%) 53 | 100 100 . 100 . 21 . . Level 1 13 | . . . . . 23 . . Level 2 11 | . . . . . 18 . . Level 3 15 | . . . . . 25 . . Level 4 6 | . . . . . 11 . . Level 5 . | . . . . . . . . High Security . | . . . . . . . . Max Security . | . . . . . . . . Squads Dispatched 21 | . 1 . . . 19 . 1 Investigation 8 | . 1 . . . 7 . . Extermination 6 | . . . . . 6 . . Reinforcement 3 | . . . . . 3 . . Assault 4 | . . . . . 3 . 1 Garrison . | . . . . . . . . Intercept . | . . . . . . . . Searches Triggered . | . . . . . . . . Construction Impeded 1 | . . . . . 1 . . Haulers Reinforced . | . . . . . . . . Active Scanning Responses . | . . . . . . . . Cargo Convoy Interrupts . | . . . . . . . . Stealth | -11 -10 -10 -9 -9 -6 -6 -6 --------- Run | Yrd Mat Sub Rec Scr Fac Low Low Distress Signals . | . . . . . . . . Communications Jammed . | . . . . . . . . Distress Signals . | . . . . . . . . Times Spotted 143 | . 12 14 1 . 82 18 16 Peak Tracking Total 10 | . 3 2 1 . 6 9 10 Tactical Retreats 12 | . 2 . . . 4 3 3 Traps | -11 -10 -10 -9 -9 -6 -6 -6 ------- Run | Yrd Mat Sub Rec Scr Fac Low Low Traps Triggered 9 | . 2 2 . . 5 . . Indirectly . | . . . . . . . . Trap Hack Attempts . | . . . . . . . . Triggered . | . . . . . . . . Disarmed . | . . . . . . . . Reprogrammed . | . . . . . . . . Reused . | . . . . . . . . Traps Extracted . | . . . . . . . . Installed . | . . . . . . . . Triggered 2 | . . . . . . 2 . Machines | -11 -10 -10 -9 -9 -6 -6 -6 ---------- Run | Yrd Mat Sub Rec Scr Fac Low Low Machines Disabled 8 | . . . . . 8 . . Max in Single Turn 1 | . . . . . 1 . . Garrison Access 1 | . . . . . 1 . . Machines Repaired . | . . . . . . . . Machines Dismantled . | . . . . . . . . Machines Sabotaged . | . . . . . . . . Overloaded Fab Kills . | . . . . . . . . Hacking | -11 -10 -10 -9 -9 -6 -6 -6 --------- Run | Yrd Mat Sub Rec Scr Fac Low Low Machines Accessed 30 | . 6 . 6 1 17 . . Terminals 24 | . 6 . 6 . 12 . . Fabricators 1 | . . . . . 1 . . Repair Stations . | . . . . . . . . Recycling Units 3 | . . . . . 3 . . Scanalyzers . | . . . . . . . . Garrison Access 1 | . . . . . 1 . . Total Hacks 77 | . 14 . 21 1 41 . . Successful 33 | . 8 . 11 1 13 . . Failed 44 | . 6 . 10 . 28 . . Catastrophic 7 | . . . . . 7 . . Database Lockouts . | . . . . . . . . Manual 71 | . 13 . 17 . 41 . . Terminals 68 | . 14 . 21 . 33 . . Fabricators 1 | . . . . . 1 . . Repair Stations . | . . . . . . . . Recycling Units 5 | . . . . . 5 . . Scanalyzers . | . . . . . . . . Garrison Access 2 | . . . . . 2 . . Terminal Hacks 4 | . . . 3 1 . . . Prototype ID Bank 1 | . . . 1 . . . . Terminal Index 1 | . . . 1 . . . . Zone Layout 1 | . . . 1 . . . . Derelict Proto ID Bank 1 | . . . . 1 . . . Fabricator Hacks . | . . . . . . . . Repair Station Hacks . | . . . . . . . . Recycling Unit Hacks . | . . . . . . . . Scanalyzer . | . . . . . . . . Garrison Access Hacks . | . . . . . . . . Unauthorized Hacks 29 | . 8 . 8 . 13 . . Terminals 24 | . 8 . 8 . 8 . . Botnet 7 | . 2 . 3 . 2 . . Skim 17 | . 6 . 5 . 6 . . Fabricators 1 | . . . . . 1 . . Haulers 1 | . . . . . 1 . . Repair Stations 3 | . . . . . 3 . . Recycling Units 1 | . . . . . 1 . . Mask 1 | . . . . . 1 . . Scrapoids 3 | . . . . . 3 . . Scanalyzers . | . . . . . . . . Garrison Access . | . . . . . . . . Data Cores Recovered . | . . . . . . . . Used . | . . . . . . . . Hacking Detections 24 | . 5 . 5 . 14 . . Full Trace Events 2 | . . . . . 2 . . Feedback Events 1 | . . . . . 1 . . Corruption 1 | . . . . . 1 . . Feedback Blocked . | . . . . . . . . Robot Schematics Acquired . | . . . . . . . . Robots Built . | . . . . . . . . Authchips . | . . . . . . . . Time . | . . . . . . . . Total Robot Build Rating . | . . . . . . . . Part Schematics Acquired . | . . . . . . . . Parts Built . | . . . . . . . . Authchips . | . . . . . . . . Time . | . . . . . . . . Total Part Build Rating . | . . . . . . . . Parts Repaired . | . . . . . . . . Time . | . . . . . . . . Parts Recycled . | . . . . . . . . Recycled Matter . | . . . . . . . . Retrieved Matter . | . . . . . . . . Retrieved Components . | . . . . . . . . Parts Scanalyzed . | . . . . . . . . Part Schematics Acquired . | . . . . . . . . Parts Damaged . | . . . . . . . . Bothacking | -11 -10 -10 -9 -9 -6 -6 -6 ------------ Run | Yrd Mat Sub Rec Scr Fac Low Low Used RIF Installer . | . . . . . . . . Robots Hacked . | . . . . . . . . Non-combat . | . . . . . . . . Combat . | . . . . . . . . Robot Hacks Applied . | . . . . . . . . Relay Couplers Released 2 | . . . . . 2 . . Machine Destruction 2 | . . . . . 2 . . Fabnet Peak Effective % . | . . . . . . . . Robots Rewired 2 | . . . . . . 2 . Allies Hacked . | . . . . . . . . Hacks Repelled . | . . . . . . . . Allies | -11 -10 -10 -9 -9 -6 -6 -6 -------- Run | Yrd Mat Sub Rec Scr Fac Low Low Total Allies 17 | . . . . . 15 2 . Largest Group 6 | . . . . . 6 3 . Highest-Rated Group 168 | . . . . . 168 76 . Highest-Rated Ally 31 | . . . . . 31 30 . Total Orders 2 | . . . . . 2 . . STAY 2 | . . . . . 2 . . Ally Attacks 164 | . . . . . 140 24 . Total Damage 3204 | . . . . . 2708 496 . Kills 25 | . . . . . 20 5 . Allies Corrupted 1 | . . . . . . 1 . Allies Melted . | . . . . . . . . Intel | -11 -10 -10 -9 -9 -6 -6 -6 ------- Run | Yrd Mat Sub Rec Scr Fac Low Low Robot Analysis Total . | . . . . . . . . Derelict Logs Recovered 8 | . . 1 . 5 . 2 . Drone Launches . | . . . . . . . . Drone Recoveries . | . . . . . . . . Exploration | -11 -10 -10 -9 -9 -6 -6 -6 ------------- Run | Yrd Mat Sub Rec Scr Fac Low Low Turns Passed 11913 | 93 1287 2048 1004 2239 3563 1157 522 Spaces Moved 6974 | 45 450 1102 288 1345 2300 1022 422 Core 9 | 9 . . . . . . . Treads 3650 | 36 450 1102 288 1345 429 . . Legs . | . . . . . . . . Wheels 3315 | . . . . . 1871 1022 422 Hover . | . . . . . . . . Flight . | . . . . . . . . Fastest Speed 50 | 50 160 160 160 160 86 91 80 Average Speed 132 | 138 160 160 160 164 113 97 93 Slowest Speed 260 | 160 160 240 160 260 240 120 94 Overloaded Moves . | . . . . . . . . Propulsion Burnouts . | . . . . . . . . Robots Hopped . | . . . . . . . . Cave-ins Triggered . | . . . . . . . . Exploration Rate (%) 59 | 5 66 63 74 81 51 92 46 Regions Visited 7 Branch Regions 5 Pre-discovered Areas 5 | . 1 1 1 . . 2 . Known Exits Taken 3 | . . 1 1 . 1 . . Unknown Exits Taken 4 | 1 1 . . 1 . 1 . Scrap Searched 13 | . . 3 . 5 . 1 4 Spaces Dug 13 | . 3 2 . . 8 . . Terrain Destroyed 66 | . 3 2 . . 21 30 10 Melee 10 | . 3 2 . . 5 . . Projectile 16 | . . . . . 16 . . AOE 32 | . . . . . . 24 8 Terrain Rammed . | . . . . . . . . Walls Destroyed . | . . . . . . . . Machines Disabled . | . . . . . . . . Actions | -11 -10 -10 -9 -9 -6 -6 -6 --------- Run | Yrd Mat Sub Rec Scr Fac Low Low Total 8889 | 60 951 1237 820 1382 2851 1110 478 Wait 1197 | . 453 18 523 5 178 11 9 Move 6967 | 44 449 1101 287 1344 2299 1021 422 Hop . | . . . . . . . . Pick Up 58 | 2 8 10 . 13 21 2 2 Fast Attach 45 | 7 . 5 2 2 23 4 2 Attach 33 | . . 6 . . 20 2 5 Detach 16 | . . . . 1 9 4 2 Swap 61 | . 6 10 . 3 35 5 2 Drop 53 | . . 10 2 14 18 9 . Fire 383 | 7 32 69 6 . 201 43 25 Melee 63 | . 3 8 . . 43 . 9 Ram 3 | . . . . . 3 . . Kick . | . . . . . . . . Crush 1 | . . . . . 1 . . Escape Stasis . | . . . . . . . . Rewire 9 | . . . . . . 9 . Trap . | . . . . . . . . Miscellaneous . | . . . . . . . . Route ------- -11/Scrapyard -10/Materials (discovered 6 exits: *Mat x3 / *Min x2 / [*Sub]) -10/Subcaves (discovered 3 exits: *Mat x2 / *Rec) -9/Recycling -9/Scraptown -6/Factory (discovered 5 exits: [*Fac x2] / *Low x2 / Ext) -6/Lower Caves -6/Lower Caves (discovered 1 exit: [*Fac]) History --------- Turn | Location | Event 6 | -11/Scrapyard | Discovered new exit (range 16) 94 | -11/Scrapyard | Entered Materials 200 | -10/Materials | Met 8R-AWN 248 | -10/Materials | Discovered new exit (range 6) 315 | -10/Materials | Build established: Mutant 564 | -10/Materials | Discovered new exit (range 12) 788 | -10/Materials | Discovered new exit (range 14) 967 | -10/Materials | Discovered new exit (range 6) 987 | -10/Materials | Identified exit to Mines 1053 | -10/Materials | Learned location of 2 exits from Subcaves 1154 | -10/Materials | Identified exit to Materials 1294 | -10/Materials | Learned 4 Recycling zone layouts 1359 | -10/Materials | Learned 4 Materials zone layouts 1381 | -10/Materials | Entered Subcaves 1382 | -10/Subcaves | Identified exit to Materials 1382 | -10/Subcaves | Identified exit to Recycling 1388 | -10/Subcaves | Learned Materials interactive machine intel 1515 | -10/Subcaves | Learned location of Zion (-7) 1515 | -10/Subcaves | Met a Zionite searching for "candidates" 1734 | -10/Subcaves | Shifting Twisted Machinery released Battle Cannon 1805 | -10/Subcaves | Shifting Twisted Machinery released Battle Rifle 1959 | -10/Subcaves | Shifting Twisted Machinery released Piercing Trap 2053 | -10/Subcaves | Lost 3 parts (2n1u) 2524 | -10/Subcaves | A swath of the cavern ceiling suddenly collapsed 3016 | -10/Subcaves | Build established: Derelict-Mutant 3117 | -10/Subcaves | Discovered exit to Materials (range 16) 3121 | -10/Subcaves | Ambushed by Subdwellers from Twisted Machinery 3167 | -10/Subcaves | Core integrity fell below 50% 3203 | -10/Subcaves | Lost 3 parts (1u2w) 3324 | -10/Subcaves | Disturbed a concealed Subdweller 3429 | -10/Subcaves | Entered Recycling 3430 | -9/Recycling | Identified exit to Scraptown 3461 | -9/Recycling | Build established: Mutant 3879 | -9/Recycling | Scanned before Scraplab entrance 3901 | -9/Recycling | Entered Scraplab 3994 | -9/Recycling | Learned 4 Recycling zone layouts 4059 | -9/Recycling | Learned Storage security intel 4115 | -9/Recycling | Learned 2 Materials zone layouts 4192 | -9/Recycling | Learned Materials trap positions 4215 | -9/Recycling | Learned 4 Recycling zone layouts 4290 | -9/Recycling | Learned 2 Storage zone layouts 4402 | -9/Recycling | Learned 2 Materials zone layouts 4433 | -9/Recycling | Entered Scraptown 4433 | -9/Scraptown | System corruption cleaned by C-Scrubber 4672 | -9/Scraptown | Visited Cyclists 4750 | -9/Scraptown | Visited Fellowship of the Rings 4812 | -9/Scraptown | Build established: Derelict-Mutant 4833 | -9/Scraptown | Scanned Subdweller tech in exchange for log data 4836 | -9/Scraptown | Learned 8 Factory zone layouts 4838 | -9/Scraptown | Learned Factory stockpile data 4840 | -9/Scraptown | Learned location of 1 exit from Factory 5286 | -9/Scraptown | Visited Junk Repository 5395 | -9/Scraptown | Visited UFD Registry 5395 | -9/Scraptown | Registered with UFD as "Megalauncher" 5438 | -9/Scraptown | Visited Science Testing Area 5486 | -9/Scraptown | Visited Science Guys 5537 | -9/Scraptown | Visited Junk Cannon Lab 5718 | -9/Scraptown | Delivered Scrap Shield to a Scientist 5775 | -9/Scraptown | Visited Scrap Suit Storage 5783 | -9/Scraptown | Found Scrap Suit 5787 | -9/Scraptown | Found Scrap Suit 5826 | -9/Scraptown | Visited Scrapoid Pod Storage 5865 | -9/Scraptown | Visited Botcube Research 6048 | -9/Scraptown | Visited Chapter 10 6080 | -9/Scraptown | Visited Cartography Club 6493 | -9/Scraptown | Visited DA-N13 Charitable Foundation 6509 | -9/Scraptown | Found DCF Scrap (28 items) 6656 | -9/Scraptown | Discovered new exit (range 5) 6672 | -9/Scraptown | Entered Factory 6672 | -6/Factory | Evolved 8 slots: Power x1, Propulsion x2, Utility x4, Weapon x1 6673 | -6/Factory | Identified exit to Lower Caves 6674 | -6/Factory | Identified exit to Extension 6851 | -6/Factory | Spotted B-75 Beast 6869 | -6/Factory | Destroyed B-75 Beast 6909 | -6/Factory | Discovered new exit (range 14) 7177 | -6/Factory | Build established: Scavenger-Tank 7600 | -6/Factory | Scrapoid reinforcements arrived 7792 | -6/Factory | Discovered exit to Lower Caves (range 7) 7847 | -6/Factory | Discovered new exit (range 14) 7963 | -6/Factory | Scrapoid reinforcements arrived 8039 | -6/Factory | Found Scrap Suit 8074 | -6/Factory | Murdered 3 allies 8081 | -6/Factory | Build established: Scavenger-Scrapper 9214 | -6/Factory | Lost 5 parts (2p1u2w) 9582 | -6/Factory | Build established: Tank 9811 | -6/Factory | Scrapoids reinforcements arrived? 9822 | -6/Factory | First assault squad dispatched 10016 | -6/Factory | Core integrity fell below 50% 10174 | -6/Factory | Learned location of 1 exit from Upper Caves 10218 | -6/Factory | Learned 2 Extension zone layouts 10235 | -6/Factory | Entered Lower Caves 10235 | -6/Lower Caves | Accompanied by 4 allies 10235 | -6/Lower Caves | Spotted B-75 Beast 10237 | -6/Lower Caves | UFD Scientist delivered a prototype 10242 | -6/Lower Caves | Allies destroyed B-75 Beast 10265 | -6/Lower Caves | Found Prototype Protection 10265 | -6/Lower Caves | Identified Enh. Scrap Shield 10393 | -6/Lower Caves | Attracted the attention of an 0b10 outpost 10415 | -6/Lower Caves | Found Scrap Suit 10423 | -6/Lower Caves | Lost 3 allies 10560 | -6/Lower Caves | Build established: Scavenger-Scrapper 10635 | -6/Lower Caves | Attracted the attention of an 0b10 checkpoint 10663 | -6/Lower Caves | Learned location of Extension (-6) 11123 | -6/Lower Caves | Discovered new exit (range 7) 11392 | -6/Lower Caves | Entered another Lower Caves area 11516 | -6/Lower Caves | Discovered new exit (range 15) 11579 | -6/Lower Caves | Attracted the attention of an 0b10 checkpoint 11611 | -6/Lower Caves | Destroyed 7 combat bots 11826 | -6/Lower Caves | Attracted the attention of an 0b10 outpost 11846 | -6/Lower Caves | System corruption reached 10% 11887 | -6/Lower Caves | Core integrity fell below 20% 11905 | -6/Lower Caves | Lost 8 parts (2p1n1u4w) 11914 | -6/Lower Caves | Destroyed by Y-64 Sentinel with Wave Gun Last Messages --------------- 11874_ Destroyed Lgt. Angular Momentum Engine. 11875_ Imp. Light Armor Plating fries itself beyond repair. 11876_ Critical hit (Burn: +37). 11876_ Slug penetrates Wall. 11877_ G-50 Soldier destroyed. 11881_ Slug penetrates Wall. 11882_ System corrupted: Energy discharge (-24). 11884_ Penetrated by Slug. 11886_ Slug penetrates Wall. 11889_ G-50 Soldier destroyed. 11889_ Penetrated by Slug. 11894_ Acquired Adv. Heat Sink. 11895_ Ovr. Scrapsphere repairs itself (+8). 11895_ Acquired 10 matter. 11895_ Ovr. Scrapsphere suddenly begins malfunctioning. 11897_ System corrupted: Component data lost. 11908_ CPS modules attach to Y-64 Sentinel. 11909_ Penetrated by Slug. 11910_ Y-64 Sentinel KE Penetrator severed. 11912_ CPS Tube destroyed. Map ----- +----------------------------------------------------+ | ?????????????????????????????????????????????????? | | ?????????????????????????????????????????????????? | | ?????????????????????????????????????????????????? | | ?????????????????????????????????????????????????? | | ?????????????????????????????????????????????????? | | ?????????????????????????????????????????????????? | | ?????????????????????????????????????????????????? | | ?????????????????????????????????????????????????? | | ?????????????????????????????????????????????????? | | ????????????????????????????????????????????????? | | ????????????????????????????????????????????????? | | ????????????????????????????????????????????????? | | ????????????????????????????????????????????????? | | ?????????????????????????????????????????????????? | | ?????????????????????????????????????????????????? | | ???????????????????????????????#?????????????????? | | ??????????????????????????????? ?????####????????? | | ??????????????????????????????? ?????# #????????? | | ??????????????????????????????# #????# #????????? | | ??????????????????????????????#"#???## #????????? | | ?????????????????????????????? ##??#% ####?????? | | ?????????????????????????????? #??## % %##????? | | ???????????????????????######## #???## % #????? | | ???????????????????????#""""""# #???## ###### | | ???????????????????????# # #??## % ## # | | ???????????????????????# @ %+%#??## % % #? | | ???????????????????????###Y/###%#??# % %% ## | | ???????????????????????# [ #!#??# % ## % # | | ???????????????????????# # ##?# ##### # | | ?????????????????????# ## ##% ### #???# # | | ?????????????????????# #???# # | | ?????????????????????######### ##???# % | | ?????????????????????????????#; ### ##????## | | ??????????????????????????????" ######??????### | | ?????????????????????????????# #????????????# | | ????????????????????????????# #????????????# | | ???????????????????????????# ##????????????## | | ???????????????????????????# # #??????????????# | | ??????????????????????????? ## #??????????##??? | | ??????????????????????????# #?? #??????????# ##? | | ??????????????????????????# ??? #?????????## # | | ?????????????????????????? ??? #??????#### | | ????????????????????????? ???? #??????# ??# | | ?????????????????????????? ???? ???????# ?## | | ???????????????????????????????? ???????# ## | | ???????????????????????????????? ????????# | | ??????????????????????????????????????????# % | | ??????????????????????????????????????????# " | | ??????????????????????????????????????????## "" | | ???????????????????????????????????????????# "" | +----------------------------------------------------+ Best States ------------- Heat Dissipation 105 Energy Generation 30 Energy Capacity 505 Matter Stores 300 Matter Capacity 300 Sight Range 16 Terrain Scan Density 10 Armor Coverage 800 Resistance: TH 15 Core Shielding 20 Utility Shielding 66 Weapon Shielding 33 Evasion (%) 42 Recoil Reduction 4 Item Schematics ----------------- None Robot Schematics ------------------ None Fabricated ------------ Nothing Alien Tech Used ----------------- None Achievements -------------- None Challenges ------------ None Game ------ Seed BurstPlasmaBrace Manual? 0 Play Time 01:44:24 Cumulative 198.4 hours Start 2024.10.01 @ 16:22:53 End 2024.10.01 @ 18:41:08 Sessions 1 Manual Loads 0 Difficulty Rogue Special Mode None Game No. 150 Rogue 150 Adventurer 0 Explorer 0 Win Type - Total 8 Types 7/0/1/0/0/0/0/0/0 Lore% 52 Gallery% 62 Achievement% 58 Wizard Run 0 Options --------- Layout 0 ASCII 0 Keyboard 1 Movement Numpad Keybinds 0 Fullscreen 2 Font 18/X11 Map View 76x50 Zoom Use 0% Tactical HUD 1 Map Filters NONE Filters NONE Steam 1 RUN: 9b30902f-541c-48a0-8641-f92be87056b7